[Event "79th Armenian-HL-ch Women 2024"]
[Site "Yerevan"]
[Date "2024.01.19"]
[Round "8.2"]
[White "Stepanyan, Alvard"]
[Black "Kobak, Polina"]
[Result "0-1"]
[ECO "B30"]
[WhiteElo "1514"]
[BlackElo "2120"]
[Annotator "NA RC"]
[PlyCount "70"]
[EventDate "2024.01.11"]
[EventType "tourn"]
[EventCountry "ARM"]
[SourceTitle "playchess.com"]
[Source "ChessBase"]
[SourceQuality "1"]
[TimeControl "40/5400+30:1800+30"]

1. e4 {[%emt 0:00:07]} c5 {[%emt 0:00:04]} 2. Nf3 {[%emt 0:00:19]} Nc6 {[%emt 0:00:09]} 3. Bb5 {[%emt 0:01:12]} e6 {[%emt 0:00:07]} 4. Bxc6 {[%emt 0:00:07]} bxc6 {[%emt 0:00:06]} 5. b3 {[%emt 0:00:04]} Ne7 {[%emt 0:03:09]} 6. d3 {[%emt 0:07:03]} Ng6 {[%emt 0:03:42]} 7. Bb2 {[%emt 0:00:58]} f6 {[%emt 0:00:47]} 8. h4 {[%emt 0:03:45]} h5 {[%emt 0:04:27]} 9. e5 {[%emt 0:07:44]} Be7 {[%emt 0:01:01]} 10. Nbd2 {[%emt 0:01:12]} d6 {[%emt 0:22:35]} 11. exd6 {[%emt 0:06:00]} Qxd6 {[%emt 0:02:03]} 12. Ne4 {[%emt 0:07:04]} Qd5 {[%emt 0:00:29]} 13. c4 {[%emt 0:11:24]} Qd8 {[%emt 0:00:41]} 14. Qd2 {[%emt 0:01:09]} e5 {[%emt 0:01:50]} 15. g3 {[%emt 0:02:21]} Nf8 {[%emt 0:08:44]} 16. O-O {[%emt 0:03:28]} Bg4 {[%emt 0:04:06]} 17. Nh2 {[%emt 0:02:38]} Bf5 {[%emt 0:01:28]} 18. f3 {[%emt 0:07:47]} Ne6 {[%emt 0:02:32]} 19. Rae1 {[%emt 0:00:37]} Qd7 {[%emt 0:05:17]} 20. Qe2 {[%emt 0:10:28]} Bh3 {[%emt 0:11:15]} 21. Rf2 {[%emt 0:03:08]} O-O-O {[%emt 0:00:48]} 22. Qd2 {[%emt 0:06:37]} Qxd3 {[%emt 0:11:17]} 23. Qa5 {[%emt 0:00:14]} Qd7 {[%emt 0:00:45]} 24. a3 {[%emt 0:01:31]} Qc7 {[%emt 0:03:03]} 25. Qa4 {[%emt 0:00:22]} f5 {[%emt 0:03:24]} 26. Nd2 {[%emt 0:07:52]} e4 {[%emt 0:01:49]} 27. Nhf1 {[%emt 0:00:08]} f4 {[%emt 0:02:40]} 28. Rxe4 {[%emt 0:04:14]} fxg3 {[%emt 0:00:17]} 29. Rfe2 {[%emt 0:00:14]} g2 {[%emt 0:00:57]} 30. Ng3 {[%emt 0:03:35]} Bd6 {[%emt 0:01:15]} 31. Be5 {[%emt 0:00:46]} Bxe5 {[%emt 0:00:54]} 32. Rxe5 {[%emt 0:00:01]} Rxd2 {[%emt 0:00:43]} 33. Rxd2 {[%emt 0:01:30]} Qxe5 {[%emt 0:00:35]} 34. Qxc6+ {[%emt 0:00:07]} Nc7 {[%emt 0:00:13]} 35. Kf2 {[%emt 0:01:40]} g1=Q+ {[%emt 0:00:28]} 0-1

[Event "79th Armenian-HL-ch Women 2024"]
[Site "Yerevan"]
[Date "2024.01.19"]
[Round "8.3"]
[White "Avetisyan, Mariam"]
[Black "Khachatryan, Anna"]
[Result "1-0"]
[ECO "A43"]
[WhiteElo "2043"]
[BlackElo "2022"]
[Annotator "NA RC"]
[PlyCount "57"]
[EventDate "2024.01.11"]
[EventType "tourn"]
[EventCountry "ARM"]
[SourceTitle "playchess.com"]
[Source "ChessBase"]
[SourceQuality "1"]
[TimeControl "40/5400+30:1800+30"]

1. d4 {[%emt 0:00:08]} Nf6 {[%emt 0:00:10]} 2. Nf3 {[%emt 0:00:05]} c5 {[%emt 0:00:14]} 3. d5 {[%emt 0:00:09]} b5 {[%emt 0:00:16]} 4. Bg5 {[%emt 0:02:27]} Qb6 {[%emt 0:00:14]} 5. Bxf6 {[%emt 0:09:43]} Qxf6 {[%emt 0:00:15]} 6. c3 {[%emt 0:00:18]} d6 {[%emt 0:02:09]} 7. e4 {[%emt 0:07:08]} a6 {[%emt 0:02:28]} 8. Nbd2 {[%emt 0:05:45]} g5 {[%emt 0:03:06]} 9. h3 {[%emt 0:20:24]} h5 {[%emt 0:19:17]} 10. a4 {[%emt 0:01:49]} g4 {[%emt 0:09:53]} 11. Ng1 {[%emt 0:08:04]} b4 {[%emt 0:09:04]} 12. cxb4 {[%emt 0:03:36]} cxb4 {[%emt 0:00:01]} 13. Qc2 {[%emt 0:01:06]} Nd7 {[%emt 0:00:07]} 14. Be2 {[%emt 0:16:27]} Bg7 {[%emt 0:10:50]} 15. Rb1 {[%emt 0:00:09]} Nc5 {[%emt 0:22:43]} 16. Nb3 {[%emt 0:02:09]} Ra7 {[%emt 0:05:27]} 17. Nxc5 {[%emt 0:01:40]} Rc7 {[%emt 0:00:19]} 18. Qb3 {[%emt 0:00:28]} Rxc5 {[%emt 0:01:47]} 19. Qxb4 {[%emt 0:01:27]} O-O {[%emt 0:03:05]} 20. hxg4 {[%emt 0:00:43]} hxg4 {[%emt 0:00:27]} 21. Bd3 {[%emt 0:01:02]} Qe5 {[%emt 0:04:33]} 22. Ne2 {[%emt 0:01:27]} f5 {[%emt 0:01:46]} 23. Rh5 {[%emt 0:01:22]} Bd7 {[%emt 0:03:49]} 24. Qd2 {[%emt 0:01:30]} Be8 {[%emt 0:00:00]} 25. Rxf5 {[%emt 0:00:53]} Rxf5 {[%emt 0:00:00]} 26. exf5 {[%emt 0:00:04]} Qxd5 {[%emt 0:00:25]} 27. b4 {[%emt 0:05:04]} Rc7 {[%emt 0:00:50]} 28. f6 {[%emt 0:00:40]} Bxf6 {[%emt 0:00:34]} 29. Bh7+ {[%emt 0:09:13]} 1-0

[Event "79th Armenian-HL-ch Women 2024"]
[Site "Yerevan"]
[Date "2024.01.19"]
[Round "8.4"]
[White "Gaboyan, Susanna"]
[Black "Khachatryan, Mariam"]
[Result "1/2-1/2"]
[ECO "E63"]
[WhiteElo "2179"]
[BlackElo "1567"]
[Annotator "RC"]
[PlyCount "137"]
[EventDate "2024.01.11"]
[EventType "tourn"]
[EventCountry "ARM"]
[SourceTitle "playchess.com"]
[Source "ChessBase"]
[SourceQuality "1"]
[TimeControl "40/5400+30:1800+30"]

1. g3 {[%emt 0:00:13]} Nf6 {[%emt 0:00:23]} 2. Bg2 {[%emt 0:00:06]} g6 {[%emt 0:00:09]} 3. c4 {[%emt 0:00:42]} Bg7 {[%emt 0:00:12]} 4. Nc3 {[%emt 0:00:06]} O-O {[%emt 0:00:14]} 5. d4 {[%emt 0:01:08]} d6 {[%emt 0:00:26]} 6. Nf3 {[%emt 0:00:08]} Nc6 {[%emt 0:00:52]} 7. O-O {[%emt 0:00:09]} a6 {[%emt 0:00:43]} 8. h3 {[%emt 0:03:00]} Rb8 {[%emt 0:02:49]} 9. e4 {[%emt 0:05:13]} e5 {[%emt 0:03:02]} 10. dxe5 {[%emt 0:02:38]} dxe5 {[%emt 0:01:27]} 11. Qxd8 {[%emt 0:02:10]} Rxd8 {[%emt 0:00:08]} 12. Bg5 {[%emt 0:00:04]} Re8 {[%emt 0:03:17]} 13. Nd5 {[%emt 0:04:29]} Nxe4 {[%emt 0:19:54]} 14. Nxc7 {[%emt 0:00:14]} Nxg5 {[%emt 0:01:23]} 15. Nxg5 {[%emt 0:07:13]} Rd8 {[%emt 0:12:05]} 16. Bd5 {[%emt 0:04:04]} Rf8 {[%emt 0:07:28]} 17. f4 {[%emt 0:11:43]} Nd8 {[%emt 0:05:00]} 18. Rae1 {[%emt 0:11:44]} e4 {[%emt 0:10:55]} 19. Kg2 {[%emt 0:08:49]} Bxb2 {[%emt 0:05:53]} 20. Rb1 {[%emt 0:06:11]} Bg7 {[%emt 0:02:29]} 21. Nxa6 {[%emt 0:06:33]} Ra8 {[%emt 0:00:07]} 22. Nb4 {[%emt 0:00:05]} e3 {[%emt 0:01:56]} 23. Rb3 {[%emt 0:08:26]} Re8 {[%emt 0:01:33]} 24. Re1 {[%emt 0:00:53]} e2 {[%emt 0:04:09]} 25. Ne4 {[%emt 0:04:21]} Ne6 {[%emt 0:01:27]} 26. Rxe2 {[%emt 0:01:05]} Kf8 {[%emt 0:00:39]} 27. Rd3 {[%emt 0:02:16]} f5 {[%emt 0:02:36]} 28. Ng5 {[%emt 0:07:40]} Nxf4+ {[%emt 0:01:01]} 29. gxf4 {[%emt 0:00:01]} Rxe2+ {[%emt 0:00:07]} 30. Kf3 {[%emt 0:00:05]} Re7 {[%emt 0:07:38]} 31. Nxh7+ {[%emt 0:00:14]} Ke8 {[%emt 0:00:04]} 32. Ng5 {[%emt 0:00:13]} Bf6 {[%emt 0:01:50]} 33. h4 {[%emt 0:03:10]} Bxg5 {[%emt 0:00:41]} 34. fxg5 {[%emt 0:00:02]} Be6 {[%emt 0:01:27]} 35. a3 {[%emt 0:00:24]} Rc8 {[%emt 0:01:15]} 36. Rd4 {[%emt 0:01:31]} Kf7 {[%emt 0:00:38]} 37. Kf4 {[%emt 0:01:23]} Bxd5 {[%emt 0:01:11]} 38. cxd5 {[%emt 0:00:26]} Re4+ {[%emt 0:00:37]} 39. Rxe4 {[%emt 0:00:07]} fxe4 {[%emt 0:00:03]} 40. Kxe4 {[%emt 0:00:00]} Rc4+ {[%emt 0:00:00]} 41. Ke5 {[%emt 0:00:52]} Rxh4 {[%emt 0:03:27]} 42. d6 {[%emt 0:16:35]} Rh1 {[%emt 0:10:07]} 43. d7 {[%emt 0:07:47]} Ke7 {[%emt 0:00:37]} 44. d8=Q+ {[%emt 0:00:37]} Kxd8 {[%emt 0:00:06]} 45. Kf6 {[%emt 0:00:02]} Rh3 {[%emt 0:02:53]} 46. Kxg6 {[%emt 0:00:24]} Rxa3 {[%emt 0:00:06]} 47. Kg7 {[%emt 0:00:22]} Rb3 {[%emt 0:01:59]} 48. Nc2 {[%emt 0:00:12]} Ke7 {[%emt 0:05:46]} 49. g6 {[%emt 0:00:14]} Rh3 {[%emt 0:01:36]} 50. Nd4 {[%emt 0:00:42]} Rh5 {[%emt 0:00:36]} 51. Nb3 {[%emt 0:01:03]} b5 {[%emt 0:00:45]} 52. Nd4 {[%emt 0:00:43]} Rd5 {[%emt 0:01:04]} 53. Nc6+ {[%emt 0:00:26]} Kd6 {[%emt 0:01:22]} 54. Nb4 {[%emt 0:00:30]} Rd4 {[%emt 0:00:44]} 55. Nc2 {[%emt 0:00:10]} Rf4 {[%emt 0:06:54]} 56. Kg8 {[%emt 0:01:41]} Ke6 {[%emt 0:00:40]} 57. g7 {[%emt 0:00:13]} Ke7 {[%emt 0:00:55]} 58. Ne3 {[%emt 0:00:27]} Rf3 {[%emt 0:00:50]} 59. Nd5+ {[%emt 0:00:26]} Kd6 {[%emt 0:00:15]} 60. Nb4 {[%emt 0:00:37]} Kc5 {[%emt 0:00:29]} 61. Na6+ {[%emt 0:00:35]} Kc4 {[%emt 0:00:25]} 62. Kh7 {[%emt 0:00:13]} Rh3+ {[%emt 0:00:06]} 63. Kg6 {[%emt 0:00:07]} Rg3+ {[%emt 0:00:07]} 64. Kf7 {[%emt 0:00:06]} Rf3+ {[%emt 0:00:26]} 65. Ke7 {[%emt 0:00:05]} Rg3 {[%emt 0:00:06]} 66. Kf7 {[%emt 0:00:04]} b4 {[%emt 0:00:10]} 67. Nxb4 {[%emt 0:09:48]} Kxb4 {[%emt 0:00:04]} 68. g8=Q {[%emt 0:00:00]} Rxg8 {[%emt 0:00:04]} 69. Kxg8 {[%emt 0:00:00]} 1/2-1/2

[Event "79th Armenian-HL-ch Women 2024"]
[Site "Yerevan"]
[Date "2024.01.20"]
[Round "9.1"]
[White "Khachatryan, Mariam"]
[Black "Stepanyan, Alvard"]
[Result "1-0"]
[ECO "E26"]
[WhiteElo "1567"]
[BlackElo "1514"]
[Annotator "NA"]
[PlyCount "63"]
[EventDate "2024.01.11"]
[EventType "tourn"]
[EventCountry "ARM"]
[SourceTitle "playchess.com"]
[Source "ChessBase"]
[SourceQuality "1"]
[TimeControl "40/5400+30:1800+30"]

1. d4 {[%emt 0:00:03]} Nf6 {[%emt 0:00:16]} 2. c4 {[%emt 0:00:07]} e6 {[%emt 0:00:05]} 3. Nc3 {[%emt 0:00:04]} Bb4 {[%emt 0:00:06]} 4. e3 {[%emt 0:00:14]} O-O {[%emt 0:00:11]} 5. a3 {[%emt 0:00:10]} Bxc3+ {[%emt 0:01:17]} 6. bxc3 {[%emt 0:00:06]} c5 {[%emt 0:02:14]} 7. Ne2 {[%emt 0:01:49]} b6 {[%emt 0:02:08]} 8. Ng3 {[%emt 0:01:14]} Bb7 {[%emt 0:03:11]} 9. f3 {[%emt 0:05:51]} Qc7 {[%emt 0:09:08]} 10. e4 {[%emt 0:06:02]} d6 {[%emt 0:00:47]} 11. d5 {[%emt 0:05:09]} b5 {[%emt 0:07:17]} 12. Bf4 {[%emt 0:14:19]} Ne8 {[%emt 0:19:21]} 13. Qb3 {[%emt 0:12:44]} e5 {[%emt 0:25:19]} 14. Bd2 {[%emt 0:03:52]} bxc4 {[%emt 0:00:30]} 15. Bxc4 {[%emt 0:01:20]} Nd7 {[%emt 0:00:24]} 16. O-O {[%emt 0:14:01]} Rb8 {[%emt 0:01:21]} 17. Qc2 {[%emt 0:00:43]} Nb6 {[%emt 0:02:15]} 18. Be2 {[%emt 0:01:12]} Nf6 {[%emt 0:04:09]} 19. f4 {[%emt 0:07:59]} Nbd7 {[%emt 0:06:40]} 20. fxe5 {[%emt 0:01:32]} Nxe5 {[%emt 0:01:28]} 21. Rxf6 {[%emt 0:02:59]} gxf6 {[%emt 0:00:04]} 22. Bh6 {[%emt 0:01:19]} Rfd8 {[%emt 0:10:35]} 23. Nh5 {[%emt 0:01:41]} Qe7 {[%emt 0:02:39]} 24. Rf1 {[%emt 0:01:56]} Nd7 {[%emt 0:00:10]} 25. Qd3 {[%emt 0:00:57]} Ne5 {[%emt 0:00:52]} 26. Qg3+ {[%emt 0:02:44]} Ng6 {[%emt 0:00:03]} 27. Nxf6+ {[%emt 0:01:14]} Kh8 {[%emt 0:00:05]} 28. Qh3 {[%emt 0:00:36]} Rg8 {[%emt 0:01:17]} 29. Bg5 {[%emt 0:07:58]} Rg7 {[%emt 0:00:28]} 30. Qh6 {[%emt 0:02:43]} Qe5 {[%emt 0:00:37]} 31. Nh5 {[%emt 0:00:53]} Rbg8 {[%emt 0:00:32]} 32. Bf6 {[%emt 0:00:48]} 1-0

[Event "79th Armenian-HL-ch Women 2024"]
[Site "Yerevan"]
[Date "2024.01.20"]
[Round "9.2"]
[White "Khachatryan, Anna"]
[Black "Grigoryan, Arpine"]
[Result "1-0"]
[ECO "D37"]
[WhiteElo "2022"]
[BlackElo "2025"]
[Annotator "NA"]
[PlyCount "107"]
[EventDate "2024.01.11"]
[EventType "tourn"]
[EventCountry "ARM"]
[SourceTitle "playchess.com"]
[Source "ChessBase"]
[SourceQuality "1"]
[TimeControl "40/5400+30:1800+30"]

1. d4 {[%emt 0:00:04]} d5 {[%emt 0:00:18]} 2. c4 {[%emt 0:00:06]} e6 {[%emt 0:00:03]} 3. Nf3 {[%emt 0:01:12]} Nf6 {[%emt 0:00:13]} 4. Nc3 {[%emt 0:00:05]} Be7 {[%emt 0:00:22]} 5. Bf4 {[%emt 0:00:10]} O-O {[%emt 0:01:31]} 6. e3 {[%emt 0:00:04]} h6 {[%emt 0:00:57]} 7. a3 {[%emt 0:11:34]} Bd6 {[%emt 0:05:54]} 8. Bxd6 {[%emt 0:17:28]} cxd6 {[%emt 0:01:22]} 9. cxd5 {[%emt 0:00:20]} Nxd5 {[%emt 0:00:48]} 10. Nxd5 {[%emt 0:01:52]} exd5 {[%emt 0:00:05]} 11. Bd3 {[%emt 0:03:13]} Nc6 {[%emt 0:09:10]} 12. h3 {[%emt 0:04:58]} f5 {[%emt 0:12:46]} 13. g3 {[%emt 0:11:40]} Be6 {[%emt 0:06:21]} 14. Nh4 {[%emt 0:09:22]} Qf6 {[%emt 0:05:36]} 15. Ng2 {[%emt 0:05:44]} Rac8 {[%emt 0:06:48]} 16. h4 {[%emt 0:00:48]} Rfe8 {[%emt 0:04:42]} 17. h5 {[%emt 0:03:17]} Bf7 {[%emt 0:03:42]} 18. Kf1 {[%emt 0:00:54]} Na5 {[%emt 0:02:58]} 19. Rh4 {[%emt 0:08:54]} Nc4 {[%emt 0:06:48]} 20. Ra2 {[%emt 0:05:05]} Be6 {[%emt 0:01:10]} 21. b3 {[%emt 0:02:13]} Na5 {[%emt 0:01:08]} 22. Rc2 {[%emt 0:01:14]} Rxc2 {[%emt 0:05:19]} 23. Bxc2 {[%emt 0:00:01]} Nc6 {[%emt 0:00:37]} 24. Nf4 {[%emt 0:01:38]} Ne7 {[%emt 0:00:39]} 25. Kg2 {[%emt 0:00:18]} g5 {[%emt 0:05:02]} 26. hxg6 {[%emt 0:00:01]} Nxg6 {[%emt 0:00:07]} 27. Nxg6 {[%emt 0:00:05]} Qxg6 {[%emt 0:00:03]} 28. Qh5 {[%emt 0:05:36]} Kh7 {[%emt 0:04:47]} 29. Qe2 {[%emt 0:02:16]} Kg7 {[%emt 0:00:54]} 30. Bd3 {[%emt 0:00:16]} Rc8 {[%emt 0:02:03]} 31. Qd2 {[%emt 0:00:13]} Qf6 {[%emt 0:01:14]} 32. Rf4 {[%emt 0:00:32]} Qe7 {[%emt 0:00:45]} 33. Kh2 {[%emt 0:01:48]} Rf8 {[%emt 0:00:19]} 34. Qa5 {[%emt 0:00:38]} b6 {[%emt 0:00:30]} 35. Qb4 {[%emt 0:00:21]} Qc7 {[%emt 0:00:40]} 36. Kg2 {[%emt 0:01:43]} Qd7 {[%emt 0:00:58]} 37. Ba6 {[%emt 0:01:39]} Qc7 {[%emt 0:00:31]} 38. Qd2 {[%emt 0:00:35]} Qc6 {[%emt 0:01:16]} 39. a4 {[%emt 0:00:05]} Qc7 {[%emt 0:00:25]} 40. Rh4 {[%emt 0:00:00]} Rf6 {[%emt 0:00:00]} 41. Rh1 {[%emt 0:02:25]} Qd8 {[%emt 0:04:11]} 42. Rc1 {[%emt 0:07:06]} Rf7 {[%emt 0:01:51]} 43. Qc3 {[%emt 0:04:37]} Qg5 {[%emt 0:07:46]} 44. Bc8 {[%emt 0:03:09]} Qe7 {[%emt 0:03:49]} 45. Bxe6 {[%emt 0:00:15]} Qxe6 {[%emt 0:00:04]} 46. Qc8 {[%emt 0:00:08]} Qe7 {[%emt 0:01:40]} 47. Qb8 {[%emt 0:04:46]} h5 {[%emt 0:13:26]} 48. Rc8 {[%emt 0:00:44]} h4 {[%emt 0:00:35]} 49. Rg8+ {[%emt 0:04:04]} Kh6 {[%emt 0:02:31]} 50. Rh8+ {[%emt 0:04:12]} Rh7 {[%emt 0:00:50]} 51. Re8 {[%emt 0:01:55]} Qc7 {[%emt 0:02:08]} 52. Re6+ {[%emt 0:00:35]} Kg5 {[%emt 0:00:06]} 53. Qg8+ {[%emt 0:02:33]} Rg7 {[%emt 0:00:19]} 54. Qh8 {[%emt 0:00:11]} 1-0

[Event "79th Armenian-HL-ch Women 2024"]
[Site "Yerevan"]
[Date "2024.01.20"]
[Round "9.3"]
[White "Harutyunyan, Meline"]
[Black "Gaboyan, Susanna"]
[Result "0-1"]
[ECO "A35"]
[WhiteElo "1536"]
[BlackElo "2179"]
[Annotator "RC"]
[PlyCount "87"]
[EventDate "2024.01.11"]
[EventType "tourn"]
[EventCountry "ARM"]
[SourceTitle "playchess.com"]
[Source "ChessBase"]
[SourceQuality "1"]
[TimeControl "40/5400+30:1800+30"]

1. d4 {[%emt 0:00:07]} Nf6 {[%emt 0:00:30]} 2. c4 {[%emt 0:00:25]} g6 {[%emt 0:00:05]} 3. Nf3 {[%emt 0:00:20]} Bg7 {[%emt 0:00:06]} 4. Nc3 {[%emt 0:00:08]} d5 {[%emt 0:00:04]} 5. e3 {[%emt 0:06:54]} O-O {[%emt 0:00:21]} 6. Be2 {[%emt 0:00:15]} c5 {[%emt 0:01:01]} 7. O-O {[%emt 0:10:12]} cxd4 {[%emt 0:00:22]} 8. Nxd4 {[%emt 0:00:59]} Nc6 {[%emt 0:00:27]} 9. cxd5 {[%emt 0:03:22]} Nxd5 {[%emt 0:00:16]} 10. Nxd5 {[%emt 0:05:17]} Qxd5 {[%emt 0:01:09]} 11. Bf3 {[%emt 0:00:02]} Qc4 {[%emt 0:01:15]} 12. Nxc6 {[%emt 0:03:42]} bxc6 {[%emt 0:00:08]} 13. Qb3 {[%emt 0:00:12]} Ba6 {[%emt 0:02:39]} 14. Re1 {[%emt 0:03:59]} Qxb3 {[%emt 0:08:34]} 15. axb3 {[%emt 0:00:07]} Bb5 {[%emt 0:00:02]} 16. e4 {[%emt 0:01:12]} Bd4 {[%emt 0:04:43]} 17. Be3 {[%emt 0:00:49]} Bxb2 {[%emt 0:07:23]} 18. Rxa7 {[%emt 0:00:21]} Rxa7 {[%emt 0:00:10]} 19. Bxa7 {[%emt 0:00:08]} Ra8 {[%emt 0:00:14]} 20. Bc5 {[%emt 0:01:37]} e5 {[%emt 0:00:11]} 21. h3 {[%emt 0:03:20]} Bd4 {[%emt 0:01:02]} 22. b4 {[%emt 0:07:15]} Ra2 {[%emt 0:01:22]} 23. Rc1 {[%emt 0:00:06]} h5 {[%emt 0:00:20]} 24. h4 {[%emt 0:13:52]} Kg7 {[%emt 0:08:30]} 25. g3 {[%emt 0:01:09]} Kf6 {[%emt 0:04:11]} 26. Bg2 {[%emt 0:00:13]} Rd2 {[%emt 0:00:25]} 27. Bf1 {[%emt 0:09:24]} Rxf2 {[%emt 0:02:28]} 28. Bxd4 {[%emt 0:01:01]} Rxf1+ {[%emt 0:00:06]} 29. Rxf1+ {[%emt 0:00:04]} Bxf1 {[%emt 0:00:04]} 30. Bc5 {[%emt 0:00:49]} Bd3 {[%emt 0:00:07]} 31. Kf2 {[%emt 0:00:13]} Bxe4 {[%emt 0:00:06]} 32. Bf8 {[%emt 0:01:00]} Kf5 {[%emt 0:00:28]} 33. Bh6 {[%emt 0:00:42]} Bd5 {[%emt 0:00:44]} 34. Bg5 {[%emt 0:00:18]} f6 {[%emt 0:02:07]} 35. Bh6 {[%emt 0:00:45]} g5 {[%emt 0:00:06]} 36. Bg7 {[%emt 0:00:45]} gxh4 {[%emt 0:00:26]} 37. gxh4 {[%emt 0:00:08]} Ke6 {[%emt 0:00:08]} 38. Bh6 {[%emt 0:02:38]} f5 {[%emt 0:00:06]} 39. Ke3 {[%emt 0:00:20]} f4+ {[%emt 0:00:07]} 40. Kf2 {[%emt 0:00:00]} Kf5 {[%emt 0:00:00]} 41. Bg5 {[%emt 0:00:12]} e4 {[%emt 0:00:08]} 42. Ke2 {[%emt 0:00:21]} e3 {[%emt 0:00:30]} 43. Kd3 {[%emt 0:00:07]} Bc4+ {[%emt 0:00:09]} 44. Kc2 {[%emt 0:00:54]} 0-1

[Event "79th Armenian-HL-ch Women 2024"]
[Site "Yerevan"]
[Date "2024.01.20"]
[Round "9.4"]
[White "Kobak, Polina"]
[Black "Gasparyan, Milena"]
[Result "1/2-1/2"]
[ECO "E11"]
[WhiteElo "2120"]
[BlackElo "1802"]
[Annotator "NA RC"]
[PlyCount "70"]
[EventDate "2024.01.11"]
[EventType "tourn"]
[EventCountry "ARM"]
[SourceTitle "playchess.com"]
[Source "ChessBase"]
[SourceQuality "1"]
[TimeControl "40/5400+30:1800+30"]

1. d4 {[%emt 0:00:02]} Nf6 {[%emt 0:00:16]} 2. c4 {[%emt 0:00:05]} e6 {[%emt 0:00:05]} 3. Nf3 {[%emt 0:00:03]} d5 {[%emt 0:00:07]} 4. g3 {[%emt 0:00:07]} Bb4+ {[%emt 0:00:08]} 5. Bd2 {[%emt 0:00:05]} Be7 {[%emt 0:00:07]} 6. Bg2 {[%emt 0:00:05]} O-O {[%emt 0:00:13]} 7. O-O {[%emt 0:00:29]} c6 {[%emt 0:00:09]} 8. Qc2 {[%emt 0:00:08]} Nbd7 {[%emt 0:00:22]} 9. Bf4 {[%emt 0:00:14]} h6 {[%emt 0:00:12]} 10. b3 {[%emt 0:01:29]} b6 {[%emt 0:00:50]} 11. Rd1 {[%emt 0:03:16]} Bb7 {[%emt 0:01:32]} 12. Nc3 {[%emt 0:00:18]} Rc8 {[%emt 0:30:06]} 13. e4 {[%emt 0:02:28]} dxe4 {[%emt 0:02:12]} 14. Nxe4 {[%emt 0:00:09]} Nxe4 {[%emt 0:01:32]} 15. Qxe4 {[%emt 0:01:57]} Nf6 {[%emt 0:00:15]} 16. Qc2 {[%emt 0:02:42]} Bd6 {[%emt 0:01:31]} 17. Bxd6 {[%emt 0:05:51]} Qxd6 {[%emt 0:00:16]} 18. c5 {[%emt 0:00:16]} Qe7 {[%emt 0:09:29]} 19. b4 {[%emt 0:03:11]} Nd5 {[%emt 0:02:43]} 20. a3 {[%emt 0:04:22]} a5 {[%emt 0:03:53]} 21. Ne5 {[%emt 0:20:25]} Rfd8 {[%emt 0:16:47]} 22. Nc4 {[%emt 0:04:19]} bxc5 {[%emt 0:04:07]} 23. bxc5 {[%emt 0:00:59]} Ba6 {[%emt 0:00:50]} 24. Nxa5 {[%emt 0:04:48]} Qc7 {[%emt 0:04:18]} 25. Nb3 {[%emt 0:07:27]} Ne7 {[%emt 0:01:01]} 26. Qc3 {[%emt 0:01:54]} Ra8 {[%emt 0:04:36]} 27. Be4 {[%emt 0:05:08]} Bb5 {[%emt 0:01:06]} 28. Nd2 {[%emt 0:08:32]} Ra4 {[%emt 0:00:38]} 29. Bc2 {[%emt 0:09:52]} Raxd4 {[%emt 0:00:50]} 30. Ne4 {[%emt 0:00:44]} Nf5 {[%emt 0:04:35]} 31. Nd6 {[%emt 0:09:04]} Rxd1+ {[%emt 0:00:27]} 32. Rxd1 {[%emt 0:00:02]} Nxd6 {[%emt 0:02:44]} 33. cxd6 {[%emt 0:00:02]} Rxd6 {[%emt 0:00:12]} 34. a4 {[%emt 0:00:11]} Rxd1+ {[%emt 0:00:23]} 35. Bxd1 {[%emt 0:00:01]} Ba6 {[%emt 0:00:15]} 1/2-1/2